{"text_format":"3","workbook":"xlsx","n_sheets":4,"sheets":["Pradžia","Mėnesio biudžeto ataskaita","Mėnesio išlaidos","Papildomi duomenys"],"not_rendered":{"charts":1,"defined_names":4,"pivot_tables":2},"read":"whole","date_system":"1900"}

{"sheet":"Pradžia","index":0,"n_rows":8,"n_cols":2,"rows_kept":8}
[null,"APIE ŠĮ ŠABLONĄ"]
[null,"Naudokite šią darbaknygę norėdami sekti savo išlaidas ir sukurti šeimos biudžetą."]
[null,"Darbalapyje Mėnesio biudžeto ataskaita įveskite numatomas ir faktines pajamas iš įvairių šaltinių, darbalapyje Mėnesio išlaidos – numatomas ir faktines sumas, išleidžiamas perkant įvairių kategorijų prekes ir paslaugas."]
[null,"Numatomas ir faktinis balansas bei skirtumas apskaičiuojami automatiškai, o biudžeto suvestinė ir biudžeto apžvalga diagrama atnaujinamos darbalapyje Mėnesio biudžeto ataskaita."]
[null,"Darbalapyje Papildomi duomenys galite modifikuoti arba įvesti naują kategoriją lentelėje."]
[null,"Pastaba. "]
[null,"Papildomi nurodymai pateikti darbalapio MĖNESIO BIUDŽETO ATASKAITA a stulpelyje ir darbalapių MĖNESIO IŠLAIDOS ir PAPILDOMI DUOMENYS A1 langelyje. Šis tekstas buvo specialiai paslėptas. Norėdami pašalinti tekstą, pasirinkite A stulpelį arba A1 langelį, tada pasirinkite NAIKINTI. Norėdami nebeslėpti teksto, pasirinkite A stulpelį arba A1 langelį, tada pakeiskite šrifto spalvą."]
[null,"Norėdami sužinoti daugiau apie lenteles, lentelėje paspauskite SHIFT, tada – F10, pasirinkite parinktį LENTELĖ, tada pasirinkite ALTERNATYVUS TEKSTAS. Jei naudojate „PivotTable“, laikydami nuspaudę klavišą SHIFT ir F10 lentelėje, pasirinkite PIVOTTABLE PARINKTYS, tada pasirinkite skirtuką ALTERNATYVUS TEKSTAS."]

{"sheet":"Mėnesio biudžeto ataskaita","index":1,"n_rows":34,"n_cols":14,"rows_kept":34,"merged":[[0,1,0,4],[0,5,0,7],[0,12,0,13],[1,9,5,13],[2,2,2,5],[3,2,3,5],[4,2,4,5],[7,1,10,1],[7,5,10,5],[7,6,10,6],[8,9,31,9],[12,1,16,1],[12,5,16,5],[12,6,16,6],[19,1,34,6]]}
["Šiame darbalapyje sukurkite mėnesio biudžeto ataskaita. Darbalapio pavadinimas yra langelyje dešinėje, o antraštė – J1 langelyje. Pažymėkite F1 langelį norėdami pereiti į darbalapį Mėnesio išlaidos. Kiti naudingi patarimai, kaip naudoti šį darbalapį, pateikti šio stulpelio langeliuose.","Biudžeto apžvalga",{"$nulls":3},"Mėnesio išlaidos",{"$nulls":3},"Biudžeto suvestinė",null,null,"Vienas žalios spalvos kviečio stiebas yra šiame langelyje."]
["Balansas žyma yra dešinėje esančiame langelyje. „PivotTable“ duomenų filtrai duomenims filtruoti yra langeliuose nuo J2 ir N6. Norėdami pažymėti kelias kategorijas, laikykite nuspaudę klavišą Control.","Balansas",{"$nulls":7},"Kategorija duomenų filtras, skirtas pagal Kategorija filtruoti žemiau esančią „PivotTable“, yra šiame langelyje."]
["Numatomas balansas žyma yra langelyje dešinėje. Numatomas balansas automatiškai apskaičiuojamas G3 langelyje.","Numatomas Balansas","(Numatomas balansas atėmus išlaidas)",{"$nulls":3},{"$f":"D17-SUM(BiudžetoDuomenys[Numatomos išlaidos])","v":{"v":1585,"d":"1,585 EUR"}}]
["Faktinis balansas žyma yra langelyje dešinėje. Faktinis balansas automatiškai apskaičiuojamas G4 langelyje.","Faktinis Balansas ","(Faktinis balansas atėmus išlaidas)",{"$nulls":3},{"$f":"D11-SUM(BiudžetoDuomenys[Faktinės išlaidos])","v":{"v":1740,"d":"1,740 EUR"}}]
["Skirtumas žyma yra dešinėje esančiame langelyje. Skirtumas automatiškai apskaičiuojamas G5 langelyje. Naujas nurodymas yra A7 langelyje.","Skirtumas","(Faktinis balansas atėmus numatomą balansą)",{"$nulls":3},{"$f":"G4-G3","v":{"v":155,"d":"155 EUR"}}]
[]
["Pajamos žyma yra langelyje dešinėje, išlaidos žyma F7 langelyje, o biudžeto suvestinė patarimas – J7 langelyje.","Pajamos",{"$nulls":3},"Išlaidos",{"$nulls":3},"Pasirinkite žemiau esančią „PivotTable“, tada skirtuke Analizė pasirinkite Atnaujinti, kad atnaujintumėte duomenis."]
["Faktinių pajamų žyma yra langelyje dešinėje, o faktinių išlaidų žyma – F8 langelyje. D8 langelyje įveskite 1 pajamos. Faktinės išlaidos apskaičiuojamos automatiškai G8 langelyje.","FAKTINĖS","1 pajamos",{"v":5800,"d":"5,800 EUR"},null,"FAKTINĖS",{"$f":"SUM(BiudžetoDuomenys[Faktinės išlaidos])","v":{"v":7860,"d":"7,860 EUR"}}]
["D9 langelyje įveskite 2 pajamos. Vaizdas yra J9 langelyje. „PivotTable“ prasideda K9 langelyje. Norėdami atnaujinti „PivotTable“, skirtuke Analizė pasirinkite Atnaujinti.",null,"2 pajamos",{"v":2300,"d":"2,300 EUR"},{"$nulls":5},"Šiame langelyje yra vaizdas.","Kategorija","Numatomos išlaidos ","Faktinės išlaidos ","Skirtumas "]
["D10 langelyje įveskite papildomos pajamos.",null,"Papildomos pajamos",{"v":1500,"d":"1,500 EUR"},{"$nulls":6},"Vaikai",{"v":140,"d":"140 EUR"},{"v":140,"d":"140 EUR"},{"v":0,"d":"0 EUR"}]
["Bendrosios pajamos žyma yra C11 langelyje, o Bendrosios pajamos automatiškai apskaičiuojamos D11 langelyje. Kitas nurodymas yra A13 langelyje.",null,"Bendrosios pajamos",{"$f":"SUM(D8:D10)","v":{"v":9600,"d":"9,600 EUR"}}]
[{"$nulls":10},"Pramogos",{"v":400,"d":"400 EUR"},{"v":358,"d":"358 EUR"},{"v":42,"d":"42 EUR"}]
["Numatomų pajamų žyma yra langelyje dešinėje, o numatomų išlaidų žyma – F13 langelyje. Numatomos išlaidos apskaičiuojamos automatiškai G13 langelyje.","NUMATOMOS",{"$nulls":3},"NUMATOMOS",{"$f":"SUM(BiudžetoDuomenys[Numatomos išlaidos])","v":{"v":7915,"d":"7,915 EUR"}}]
["D14 langelyje įveskite 1 numatomas pajamos.",null,"1 pajamos",{"v":6000,"d":"6,000 EUR"},{"$nulls":6},"Maistas",{"v":1100,"d":"1,100 EUR"},{"v":1320,"d":"1,320 EUR"},{"v":-220,"d":"-220 EUR"}]
["D15 langelyje įveskite 2 numatomas pajamos.",null,"2 pajamos",{"v":1000,"d":"1,000 EUR"}]
["D16 langelyje įveskite papildomos pajamos.",null,"Papildomos pajamos",{"v":2500,"d":"2,500 EUR"},{"$nulls":6},"Dovanos ir labdara",{"v":100,"d":"100 EUR"},{"v":125,"d":"125 EUR"},{"v":-25,"d":"-25 EUR"}]
["Bendrosios pajamos žyma yra C17 langelyje, o bendrosios pajamos automatiškai apskaičiuojamos D17 langelyje. Kitas nurodymas yra A20 langelyje.",null,"Bendrosios pajamos",{"$f":"SUM(D14:D16)","v":{"v":9500,"d":"9,500 EUR"}}]
[{"$nulls":10},"Būstas",{"v":2830,"d":"2,830 EUR"},{"v":2702,"d":"2,702 EUR"},{"v":128,"d":"128 EUR"}]
[]
["Skritulinė diagrama, vaizduojanti išlaidų procentą pagal kategoriją, yra langelyje dešinėje.","Skritulinė diagrama, vaizduojanti išlaidų procentą pagal kategoriją, yra šiame langelyje.",{"$nulls":8},"Draudimas",{"v":900,"d":"900 EUR"},{"v":900,"d":"900 EUR"},{"v":0,"d":"0 EUR"}]
[]
[{"$nulls":10},"Paskolos",{"v":200,"d":"200 EUR"},{"v":200,"d":"200 EUR"},{"v":0,"d":"0 EUR"}]
[]
[{"$nulls":10},"Asmens priežiūra",{"v":150,"d":"150 EUR"},{"v":140,"d":"140 EUR"},{"v":10,"d":"10 EUR"}]
[]
[{"$nulls":10},"Gyvūnai",{"v":170,"d":"170 EUR"},{"v":100,"d":"100 EUR"},{"v":70,"d":"70 EUR"}]
[]
[{"$nulls":10},"Santaupos arba investicijos",{"v":200,"d":"200 EUR"},{"v":200,"d":"200 EUR"},{"v":0,"d":"0 EUR"}]
[]
[{"$nulls":10},"Mokesčiai",{"v":300,"d":"300 EUR"},{"v":300,"d":"300 EUR"},{"v":0,"d":"0 EUR"}]
[]
[{"$nulls":10},"Transportas",{"v":1425,"d":"1,425 EUR"},{"v":1375,"d":"1,375 EUR"},{"v":50,"d":"50 EUR"}]
[]
[{"$nulls":10},"Bendroji suma",{"v":7915,"d":"7,915 EUR"},{"v":7860,"d":"7,860 EUR"},{"v":55,"d":"55 EUR"}]

{"sheet":"Mėnesio išlaidos","index":2,"n_rows":62,"n_cols":7,"rows_kept":62,"merged":[[0,1,0,4],[0,5,0,6]]}
["Šiame darbalapyje apskaičiuokite savo mėnesio išlaidos. Šio darbalapio pavadinimas yra langelyje dešinėje. Norėdami pereiti į darbalapį Mėnesio biudžeto ataskaita, pažymėkite F1 langelį.","Mėnesio išlaidos",{"$nulls":3},"Mėnesio biudžeto ataskaita"]
[" Įveskite duomenis lentelėje Biudžeto duomenys, prasidedančioje langelyje dešinėje.","Aprašas","Kategorija","Numatomos išlaidos","Faktinės išlaidos","Skirtumas","Faktinių išlaidų apžvalga"]
[null,"Užklasinė veikla","Vaikai",{"v":40,"d":"40 EUR"},{"v":40,"d":"40 EUR"},{"$f":"BiudžetoDuomenys[[#This Row],[Numatomos išlaidos]]-BiudžetoDuomenys[[#This Row],[Faktinės išlaidos]]","v":{"v":0,"d":"0 EUR"}},{"$f":"BiudžetoDuomenys[[#This Row],[Faktinės išlaidos]]","v":{"v":40,"d":"40 EUR"}}]
[null,"Medicininės išlaidos","Vaikai",null,null,{"$f":"BiudžetoDuomenys[[#This Row],[Numatomos išlaidos]]-BiudžetoDuomenys[[#This Row],[Faktinės išlaidos]]","v":{"v":0,"d":"0 EUR"}},{"$f":"BiudžetoDuomenys[[#This Row],[Faktinės išlaidos]]","v":{"v":0,"d":"0 EUR"}}]
[null,"Mokykliniai reikmenys","Vaikai",null,null,{"$f":"BiudžetoDuomenys[[#This Row],[Numatomos išlaidos]]-BiudžetoDuomenys[[#This Row],[Faktinės išlaidos]]","v":{"v":0,"d":"0 EUR"}},{"$f":"BiudžetoDuomenys[[#This Row],[Faktinės išlaidos]]","v":{"v":0,"d":"0 EUR"}}]
[null,"Mokymo įstaigos mokestis","Vaikai",{"v":100,"d":"100 EUR"},{"v":100,"d":"100 EUR"},{"$f":"BiudžetoDuomenys[[#This Row],[Numatomos išlaidos]]-BiudžetoDuomenys[[#This Row],[Faktinės išlaidos]]","v":{"v":0,"d":"0 EUR"}},{"$f":"BiudžetoDuomenys[[#This Row],[Faktinės išlaidos]]","v":{"v":100,"d":"100 EUR"}}]
[null,"Koncertai","Pramogos",{"v":50,"d":"50 EUR"},{"v":40,"d":"40 EUR"},{"$f":"BiudžetoDuomenys[[#This Row],[Numatomos išlaidos]]-BiudžetoDuomenys[[#This Row],[Faktinės išlaidos]]","v":{"v":10,"d":"10 EUR"}},{"$f":"BiudžetoDuomenys[[#This Row],[Faktinės išlaidos]]","v":{"v":40,"d":"40 EUR"}}]
[null,"Teatras","Pramogos",{"v":200,"d":"200 EUR"},{"v":150,"d":"150 EUR"},{"$f":"BiudžetoDuomenys[[#This Row],[Numatomos išlaidos]]-BiudžetoDuomenys[[#This Row],[Faktinės išlaidos]]","v":{"v":50,"d":"50 EUR"}},{"$f":"BiudžetoDuomenys[[#This Row],[Faktinės išlaidos]]","v":{"v":150,"d":"150 EUR"}}]
[null,"Filmai","Pramogos",{"v":50,"d":"50 EUR"},{"v":28,"d":"28 EUR"},{"$f":"BiudžetoDuomenys[[#This Row],[Numatomos išlaidos]]-BiudžetoDuomenys[[#This Row],[Faktinės išlaidos]]","v":{"v":22,"d":"22 EUR"}},{"$f":"BiudžetoDuomenys[[#This Row],[Faktinės išlaidos]]","v":{"v":28,"d":"28 EUR"}}]
[null,"Muzika (CD, atsisiuntimai ir t. t.)","Pramogos",{"v":50,"d":"50 EUR"},{"v":30,"d":"30 EUR"},{"$f":"BiudžetoDuomenys[[#This Row],[Numatomos išlaidos]]-BiudžetoDuomenys[[#This Row],[Faktinės išlaidos]]","v":{"v":20,"d":"20 EUR"}},{"$f":"BiudžetoDuomenys[[#This Row],[Faktinės išlaidos]]","v":{"v":30,"d":"30 EUR"}}]
[null,"Sporto renginiai","Pramogos",{"v":0,"d":"0 EUR"},{"v":40,"d":"40 EUR"},{"$f":"BiudžetoDuomenys[[#This Row],[Numatomos išlaidos]]-BiudžetoDuomenys[[#This Row],[Faktinės išlaidos]]","v":{"v":-40,"d":"-40 EUR"}},{"$f":"BiudžetoDuomenys[[#This Row],[Faktinės išlaidos]]","v":{"v":40,"d":"40 EUR"}}]
[null,"Vaizdo įrašai / DVD (įsigijimas)","Pramogos",{"v":20,"d":"20 EUR"},{"v":50,"d":"50 EUR"},{"$f":"BiudžetoDuomenys[[#This Row],[Numatomos išlaidos]]-BiudžetoDuomenys[[#This Row],[Faktinės išlaidos]]","v":{"v":-30,"d":"-30 EUR"}},{"$f":"BiudžetoDuomenys[[#This Row],[Faktinės išlaidos]]","v":{"v":50,"d":"50 EUR"}}]
[null,"Vaizdo įrašai / DVD (nuoma)","Pramogos",{"v":30,"d":"30 EUR"},{"v":20,"d":"20 EUR"},{"$f":"BiudžetoDuomenys[[#This Row],[Numatomos išlaidos]]-BiudžetoDuomenys[[#This Row],[Faktinės išlaidos]]","v":{"v":10,"d":"10 EUR"}},{"$f":"BiudžetoDuomenys[[#This Row],[Faktinės išlaidos]]","v":{"v":20,"d":"20 EUR"}}]
[null,"Restoranai","Maistas",{"v":1000,"d":"1,000 EUR"},{"v":1200,"d":"1,200 EUR"},{"$f":"BiudžetoDuomenys[[#This Row],[Numatomos išlaidos]]-BiudžetoDuomenys[[#This Row],[Faktinės išlaidos]]","v":{"v":-200,"d":"-200 EUR"}},{"$f":"BiudžetoDuomenys[[#This Row],[Faktinės išlaidos]]","v":{"v":1200,"d":"1,200 EUR"}}]
[null,"Maisto prekės","Maistas",{"v":100,"d":"100 EUR"},{"v":120,"d":"120 EUR"},{"$f":"BiudžetoDuomenys[[#This Row],[Numatomos išlaidos]]-BiudžetoDuomenys[[#This Row],[Faktinės išlaidos]]","v":{"v":-20,"d":"-20 EUR"}},{"$f":"BiudžetoDuomenys[[#This Row],[Faktinės išlaidos]]","v":{"v":120,"d":"120 EUR"}}]
[null,"1 labdara","Dovanos ir labdara",{"v":75,"d":"75 EUR"},{"v":100,"d":"100 EUR"},{"$f":"BiudžetoDuomenys[[#This Row],[Numatomos išlaidos]]-BiudžetoDuomenys[[#This Row],[Faktinės išlaidos]]","v":{"v":-25,"d":"-25 EUR"}},{"$f":"BiudžetoDuomenys[[#This Row],[Faktinės išlaidos]]","v":{"v":100,"d":"100 EUR"}}]
[null,"2 labdara","Dovanos ir labdara",{"v":25,"d":"25 EUR"},{"v":25,"d":"25 EUR"},{"$f":"BiudžetoDuomenys[[#This Row],[Numatomos išlaidos]]-BiudžetoDuomenys[[#This Row],[Faktinės išlaidos]]","v":{"v":0,"d":"0 EUR"}},{"$f":"BiudžetoDuomenys[[#This Row],[Faktinės išlaidos]]","v":{"v":25,"d":"25 EUR"}}]
[null,"1 dovanos","Dovanos ir labdara",null,null,{"$f":"BiudžetoDuomenys[[#This Row],[Numatomos išlaidos]]-BiudžetoDuomenys[[#This Row],[Faktinės išlaidos]]","v":{"v":0,"d":"0 EUR"}},{"$f":"BiudžetoDuomenys[[#This Row],[Faktinės išlaidos]]","v":{"v":0,"d":"0 EUR"}}]
[null,"2 dovanos","Dovanos ir labdara",null,null,{"$f":"BiudžetoDuomenys[[#This Row],[Numatomos išlaidos]]-BiudžetoDuomenys[[#This Row],[Faktinės išlaidos]]","v":{"v":0,"d":"0 EUR"}},{"$f":"BiudžetoDuomenys[[#This Row],[Faktinės išlaidos]]","v":{"v":0,"d":"0 EUR"}}]
[null,"Televizija","Būstas",{"v":100,"d":"100 EUR"},{"v":100,"d":"100 EUR"},{"$f":"BiudžetoDuomenys[[#This Row],[Numatomos išlaidos]]-BiudžetoDuomenys[[#This Row],[Faktinės išlaidos]]","v":{"v":0,"d":"0 EUR"}},{"$f":"BiudžetoDuomenys[[#This Row],[Faktinės išlaidos]]","v":{"v":100,"d":"100 EUR"}}]
[null,"Elektra","Būstas",{"v":45,"d":"45 EUR"},{"v":50,"d":"50 EUR"},{"$f":"BiudžetoDuomenys[[#This Row],[Numatomos išlaidos]]-BiudžetoDuomenys[[#This Row],[Faktinės išlaidos]]","v":{"v":-5,"d":"-5 EUR"}},{"$f":"BiudžetoDuomenys[[#This Row],[Faktinės išlaidos]]","v":{"v":50,"d":"50 EUR"}}]
[null,"Degalai","Būstas",{"v":300,"d":"300 EUR"},{"v":400,"d":"400 EUR"},{"$f":"BiudžetoDuomenys[[#This Row],[Numatomos išlaidos]]-BiudžetoDuomenys[[#This Row],[Faktinės išlaidos]]","v":{"v":-100,"d":"-100 EUR"}},{"$f":"BiudžetoDuomenys[[#This Row],[Faktinės išlaidos]]","v":{"v":400,"d":"400 EUR"}}]
[null,"Namų valymo paslaugos","Būstas",{"v":200,"d":"200 EUR"},null,{"$f":"BiudžetoDuomenys[[#This Row],[Numatomos išlaidos]]-BiudžetoDuomenys[[#This Row],[Faktinės išlaidos]]","v":{"v":200,"d":"200 EUR"}},{"$f":"BiudžetoDuomenys[[#This Row],[Faktinės išlaidos]]","v":{"v":0,"d":"0 EUR"}}]
[null,"Techninė priežiūra","Būstas",{"v":200,"d":"200 EUR"},{"v":150,"d":"150 EUR"},{"$f":"BiudžetoDuomenys[[#This Row],[Numatomos išlaidos]]-BiudžetoDuomenys[[#This Row],[Faktinės išlaidos]]","v":{"v":50,"d":"50 EUR"}},{"$f":"BiudžetoDuomenys[[#This Row],[Faktinės išlaidos]]","v":{"v":150,"d":"150 EUR"}}]
[null,"Būsto paskola arba nuoma","Būstas",{"v":1700,"d":"1,700 EUR"},{"v":1700,"d":"1,700 EUR"},{"$f":"BiudžetoDuomenys[[#This Row],[Numatomos išlaidos]]-BiudžetoDuomenys[[#This Row],[Faktinės išlaidos]]","v":{"v":0,"d":"0 EUR"}},{"$f":"BiudžetoDuomenys[[#This Row],[Faktinės išlaidos]]","v":{"v":1700,"d":"1,700 EUR"}}]
[null,"Dujos","Būstas",null,null,{"$f":"BiudžetoDuomenys[[#This Row],[Numatomos išlaidos]]-BiudžetoDuomenys[[#This Row],[Faktinės išlaidos]]","v":{"v":0,"d":"0 EUR"}},{"$f":"BiudžetoDuomenys[[#This Row],[Faktinės išlaidos]]","v":{"v":0,"d":"0 EUR"}}]
[null,"Interneto paslaugos","Būstas",{"v":100,"d":"100 EUR"},{"v":100,"d":"100 EUR"},{"$f":"BiudžetoDuomenys[[#This Row],[Numatomos išlaidos]]-BiudžetoDuomenys[[#This Row],[Faktinės išlaidos]]","v":{"v":0,"d":"0 EUR"}},{"$f":"BiudžetoDuomenys[[#This Row],[Faktinės išlaidos]]","v":{"v":100,"d":"100 EUR"}}]
[null,"Telefonas (mobilusis)","Būstas",{"v":60,"d":"60 EUR"},{"v":60,"d":"60 EUR"},{"$f":"BiudžetoDuomenys[[#This Row],[Numatomos išlaidos]]-BiudžetoDuomenys[[#This Row],[Faktinės išlaidos]]","v":{"v":0,"d":"0 EUR"}},{"$f":"BiudžetoDuomenys[[#This Row],[Faktinės išlaidos]]","v":{"v":60,"d":"60 EUR"}}]
[null,"Telefonas (namų)","Būstas",{"v":35,"d":"35 EUR"},{"v":39,"d":"39 EUR"},{"$f":"BiudžetoDuomenys[[#This Row],[Numatomos išlaidos]]-BiudžetoDuomenys[[#This Row],[Faktinės išlaidos]]","v":{"v":-4,"d":"-4 EUR"}},{"$f":"BiudžetoDuomenys[[#This Row],[Faktinės išlaidos]]","v":{"v":39,"d":"39 EUR"}}]
[null,"Atsargos","Būstas",{"v":40,"d":"40 EUR"},{"v":55,"d":"55 EUR"},{"$f":"BiudžetoDuomenys[[#This Row],[Numatomos išlaidos]]-BiudžetoDuomenys[[#This Row],[Faktinės išlaidos]]","v":{"v":-15,"d":"-15 EUR"}},{"$f":"BiudžetoDuomenys[[#This Row],[Faktinės išlaidos]]","v":{"v":55,"d":"55 EUR"}}]
[null,"Atliekų šalinimas ir perdirbimas","Būstas",{"v":25,"d":"25 EUR"},{"v":22,"d":"22 EUR"},{"$f":"BiudžetoDuomenys[[#This Row],[Numatomos išlaidos]]-BiudžetoDuomenys[[#This Row],[Faktinės išlaidos]]","v":{"v":3,"d":"3 EUR"}},{"$f":"BiudžetoDuomenys[[#This Row],[Faktinės išlaidos]]","v":{"v":22,"d":"22 EUR"}}]
[null,"Vanduo ir kanalizacija","Būstas",{"v":25,"d":"25 EUR"},{"v":26,"d":"26 EUR"},{"$f":"BiudžetoDuomenys[[#This Row],[Numatomos išlaidos]]-BiudžetoDuomenys[[#This Row],[Faktinės išlaidos]]","v":{"v":-1,"d":"-1 EUR"}},{"$f":"BiudžetoDuomenys[[#This Row],[Faktinės išlaidos]]","v":{"v":26,"d":"26 EUR"}}]
[null,"Sveikatos","Draudimas",{"v":400,"d":"400 EUR"},{"v":400,"d":"400 EUR"},{"$f":"BiudžetoDuomenys[[#This Row],[Numatomos išlaidos]]-BiudžetoDuomenys[[#This Row],[Faktinės išlaidos]]","v":{"v":0,"d":"0 EUR"}},{"$f":"BiudžetoDuomenys[[#This Row],[Faktinės išlaidos]]","v":{"v":400,"d":"400 EUR"}}]
[null,"Namų","Draudimas",{"v":400,"d":"400 EUR"},{"v":400,"d":"400 EUR"},{"$f":"BiudžetoDuomenys[[#This Row],[Numatomos išlaidos]]-BiudžetoDuomenys[[#This Row],[Faktinės išlaidos]]","v":{"v":0,"d":"0 EUR"}},{"$f":"BiudžetoDuomenys[[#This Row],[Faktinės išlaidos]]","v":{"v":400,"d":"400 EUR"}}]
[null,"Gyvybės","Draudimas",{"v":100,"d":"100 EUR"},{"v":100,"d":"100 EUR"},{"$f":"BiudžetoDuomenys[[#This Row],[Numatomos išlaidos]]-BiudžetoDuomenys[[#This Row],[Faktinės išlaidos]]","v":{"v":0,"d":"0 EUR"}},{"$f":"BiudžetoDuomenys[[#This Row],[Faktinės išlaidos]]","v":{"v":100,"d":"100 EUR"}}]
[null,"1 kredito kortelė","Paskolos",{"v":200,"d":"200 EUR"},{"v":200,"d":"200 EUR"},{"$f":"BiudžetoDuomenys[[#This Row],[Numatomos išlaidos]]-BiudžetoDuomenys[[#This Row],[Faktinės išlaidos]]","v":{"v":0,"d":"0 EUR"}},{"$f":"BiudžetoDuomenys[[#This Row],[Faktinės išlaidos]]","v":{"v":200,"d":"200 EUR"}}]
[null,"2 kredito kortelė","Paskolos",null,null,{"$f":"BiudžetoDuomenys[[#This Row],[Numatomos išlaidos]]-BiudžetoDuomenys[[#This Row],[Faktinės išlaidos]]","v":{"v":0,"d":"0 EUR"}},{"$f":"BiudžetoDuomenys[[#This Row],[Faktinės išlaidos]]","v":{"v":0,"d":"0 EUR"}}]
[null,"3 kredito kortelė","Paskolos",null,null,{"$f":"BiudžetoDuomenys[[#This Row],[Numatomos išlaidos]]-BiudžetoDuomenys[[#This Row],[Faktinės išlaidos]]","v":{"v":0,"d":"0 EUR"}},{"$f":"BiudžetoDuomenys[[#This Row],[Faktinės išlaidos]]","v":{"v":0,"d":"0 EUR"}}]
[null,"Asmeninė","Paskolos",null,null,{"$f":"BiudžetoDuomenys[[#This Row],[Numatomos išlaidos]]-BiudžetoDuomenys[[#This Row],[Faktinės išlaidos]]","v":{"v":0,"d":"0 EUR"}},{"$f":"BiudžetoDuomenys[[#This Row],[Faktinės išlaidos]]","v":{"v":0,"d":"0 EUR"}}]
[null,"Studento","Paskolos",null,null,{"$f":"BiudžetoDuomenys[[#This Row],[Numatomos išlaidos]]-BiudžetoDuomenys[[#This Row],[Faktinės išlaidos]]","v":{"v":0,"d":"0 EUR"}},{"$f":"BiudžetoDuomenys[[#This Row],[Faktinės išlaidos]]","v":{"v":0,"d":"0 EUR"}}]
[null,"Drabužiai","Asmens priežiūra",{"v":150,"d":"150 EUR"},{"v":140,"d":"140 EUR"},{"$f":"BiudžetoDuomenys[[#This Row],[Numatomos išlaidos]]-BiudžetoDuomenys[[#This Row],[Faktinės išlaidos]]","v":{"v":10,"d":"10 EUR"}},{"$f":"BiudžetoDuomenys[[#This Row],[Faktinės išlaidos]]","v":{"v":140,"d":"140 EUR"}}]
[null,"Drabužių valykla","Asmens priežiūra",null,null,{"$f":"BiudžetoDuomenys[[#This Row],[Numatomos išlaidos]]-BiudžetoDuomenys[[#This Row],[Faktinės išlaidos]]","v":{"v":0,"d":"0 EUR"}},{"$f":"BiudžetoDuomenys[[#This Row],[Faktinės išlaidos]]","v":{"v":0,"d":"0 EUR"}}]
[null,"Plaukai / nagai","Asmens priežiūra",null,null,{"$f":"BiudžetoDuomenys[[#This Row],[Numatomos išlaidos]]-BiudžetoDuomenys[[#This Row],[Faktinės išlaidos]]","v":{"v":0,"d":"0 EUR"}},{"$f":"BiudžetoDuomenys[[#This Row],[Faktinės išlaidos]]","v":{"v":0,"d":"0 EUR"}}]
[null,"Sveikatos klubas","Asmens priežiūra",null,null,{"$f":"BiudžetoDuomenys[[#This Row],[Numatomos išlaidos]]-BiudžetoDuomenys[[#This Row],[Faktinės išlaidos]]","v":{"v":0,"d":"0 EUR"}},{"$f":"BiudžetoDuomenys[[#This Row],[Faktinės išlaidos]]","v":{"v":0,"d":"0 EUR"}}]
[null,"Medicininės išlaidos","Asmens priežiūra",null,null,{"$f":"BiudžetoDuomenys[[#This Row],[Numatomos išlaidos]]-BiudžetoDuomenys[[#This Row],[Faktinės išlaidos]]","v":{"v":0,"d":"0 EUR"}},{"$f":"BiudžetoDuomenys[[#This Row],[Faktinės išlaidos]]","v":{"v":0,"d":"0 EUR"}}]
[null,"Maistas","Gyvūnai",{"v":150,"d":"150 EUR"},{"v":75,"d":"75 EUR"},{"$f":"BiudžetoDuomenys[[#This Row],[Numatomos išlaidos]]-BiudžetoDuomenys[[#This Row],[Faktinės išlaidos]]","v":{"v":75,"d":"75 EUR"}},{"$f":"BiudžetoDuomenys[[#This Row],[Faktinės išlaidos]]","v":{"v":75,"d":"75 EUR"}}]
[null,"Priežiūra","Gyvūnai",{"v":20,"d":"20 EUR"},{"v":25,"d":"25 EUR"},{"$f":"BiudžetoDuomenys[[#This Row],[Numatomos išlaidos]]-BiudžetoDuomenys[[#This Row],[Faktinės išlaidos]]","v":{"v":-5,"d":"-5 EUR"}},{"$f":"BiudžetoDuomenys[[#This Row],[Faktinės išlaidos]]","v":{"v":25,"d":"25 EUR"}}]
[null,"Medicininės išlaidos","Gyvūnai",null,null,{"$f":"BiudžetoDuomenys[[#This Row],[Numatomos išlaidos]]-BiudžetoDuomenys[[#This Row],[Faktinės išlaidos]]","v":{"v":0,"d":"0 EUR"}},{"$f":"BiudžetoDuomenys[[#This Row],[Faktinės išlaidos]]","v":{"v":0,"d":"0 EUR"}}]
[null,"Žaislai","Gyvūnai",null,null,{"$f":"BiudžetoDuomenys[[#This Row],[Numatomos išlaidos]]-BiudžetoDuomenys[[#This Row],[Faktinės išlaidos]]","v":{"v":0,"d":"0 EUR"}},{"$f":"BiudžetoDuomenys[[#This Row],[Faktinės išlaidos]]","v":{"v":0,"d":"0 EUR"}}]
[null,"Investicinė sąskaita","Santaupos arba investicijos",{"v":200,"d":"200 EUR"},{"v":200,"d":"200 EUR"},{"$f":"BiudžetoDuomenys[[#This Row],[Numatomos išlaidos]]-BiudžetoDuomenys[[#This Row],[Faktinės išlaidos]]","v":{"v":0,"d":"0 EUR"}},{"$f":"BiudžetoDuomenys[[#This Row],[Faktinės išlaidos]]","v":{"v":200,"d":"200 EUR"}}]
[null,"Pensijos sąskaita","Santaupos arba investicijos",null,null,{"$f":"BiudžetoDuomenys[[#This Row],[Numatomos išlaidos]]-BiudžetoDuomenys[[#This Row],[Faktinės išlaidos]]","v":{"v":0,"d":"0 EUR"}},{"$f":"BiudžetoDuomenys[[#This Row],[Faktinės išlaidos]]","v":{"v":0,"d":"0 EUR"}}]
[null,"Federaliniai","Mokesčiai",{"v":300,"d":"300 EUR"},{"v":300,"d":"300 EUR"},{"$f":"BiudžetoDuomenys[[#This Row],[Numatomos išlaidos]]-BiudžetoDuomenys[[#This Row],[Faktinės išlaidos]]","v":{"v":0,"d":"0 EUR"}},{"$f":"BiudžetoDuomenys[[#This Row],[Faktinės išlaidos]]","v":{"v":300,"d":"300 EUR"}}]
[null,"Vietos","Mokesčiai",null,null,{"$f":"BiudžetoDuomenys[[#This Row],[Numatomos išlaidos]]-BiudžetoDuomenys[[#This Row],[Faktinės išlaidos]]","v":{"v":0,"d":"0 EUR"}},{"$f":"BiudžetoDuomenys[[#This Row],[Faktinės išlaidos]]","v":{"v":0,"d":"0 EUR"}}]
[null,"Šalies","Mokesčiai",null,null,{"$f":"BiudžetoDuomenys[[#This Row],[Numatomos išlaidos]]-BiudžetoDuomenys[[#This Row],[Faktinės išlaidos]]","v":{"v":0,"d":"0 EUR"}},{"$f":"BiudžetoDuomenys[[#This Row],[Faktinės išlaidos]]","v":{"v":0,"d":"0 EUR"}}]
[null,"Autobuso / taksi mokestis","Transportas",{"v":100,"d":"100 EUR"},{"v":150,"d":"150 EUR"},{"$f":"BiudžetoDuomenys[[#This Row],[Numatomos išlaidos]]-BiudžetoDuomenys[[#This Row],[Faktinės išlaidos]]","v":{"v":-50,"d":"-50 EUR"}},{"$f":"BiudžetoDuomenys[[#This Row],[Faktinės išlaidos]]","v":{"v":150,"d":"150 EUR"}}]
[null,"Kuras","Transportas",{"v":450,"d":"450 EUR"},{"v":400,"d":"400 EUR"},{"$f":"BiudžetoDuomenys[[#This Row],[Numatomos išlaidos]]-BiudžetoDuomenys[[#This Row],[Faktinės išlaidos]]","v":{"v":50,"d":"50 EUR"}},{"$f":"BiudžetoDuomenys[[#This Row],[Faktinės išlaidos]]","v":{"v":400,"d":"400 EUR"}}]
[null,"Draudimas","Transportas",{"v":300,"d":"300 EUR"},{"v":300,"d":"300 EUR"},{"$f":"BiudžetoDuomenys[[#This Row],[Numatomos išlaidos]]-BiudžetoDuomenys[[#This Row],[Faktinės išlaidos]]","v":{"v":0,"d":"0 EUR"}},{"$f":"BiudžetoDuomenys[[#This Row],[Faktinės išlaidos]]","v":{"v":300,"d":"300 EUR"}}]
[null,"Licencijavimas ","Transportas",{"v":25,"d":"25 EUR"},{"v":25,"d":"25 EUR"},{"$f":"BiudžetoDuomenys[[#This Row],[Numatomos išlaidos]]-BiudžetoDuomenys[[#This Row],[Faktinės išlaidos]]","v":{"v":0,"d":"0 EUR"}},{"$f":"BiudžetoDuomenys[[#This Row],[Faktinės išlaidos]]","v":{"v":25,"d":"25 EUR"}}]
[null,"Techninė priežiūra","Transportas",{"v":100,"d":"100 EUR"},{"v":50,"d":"50 EUR"},{"$f":"BiudžetoDuomenys[[#This Row],[Numatomos išlaidos]]-BiudžetoDuomenys[[#This Row],[Faktinės išlaidos]]","v":{"v":50,"d":"50 EUR"}},{"$f":"BiudžetoDuomenys[[#This Row],[Faktinės išlaidos]]","v":{"v":50,"d":"50 EUR"}}]
[null,"Mokesčiai už automobilių statymą","Transportas",null,null,{"$f":"BiudžetoDuomenys[[#This Row],[Numatomos išlaidos]]-BiudžetoDuomenys[[#This Row],[Faktinės išlaidos]]","v":{"v":0,"d":"0 EUR"}},{"$f":"BiudžetoDuomenys[[#This Row],[Faktinės išlaidos]]","v":{"v":0,"d":"0 EUR"}}]
[null,"Įmoka už automobilį","Transportas",{"v":450,"d":"450 EUR"},{"v":450,"d":"450 EUR"},{"$f":"BiudžetoDuomenys[[#This Row],[Numatomos išlaidos]]-BiudžetoDuomenys[[#This Row],[Faktinės išlaidos]]","v":{"v":0,"d":"0 EUR"}},{"$f":"BiudžetoDuomenys[[#This Row],[Faktinės išlaidos]]","v":{"v":450,"d":"450 EUR"}}]
[null,"Suma",null,{"$f":"SUBTOTAL(109,BiudžetoDuomenys[Numatomos išlaidos])","v":{"v":7915,"d":"7,915 EUR"}},{"$f":"SUBTOTAL(109,BiudžetoDuomenys[Faktinės išlaidos])","v":{"v":7860,"d":"7,860 EUR"}},{"$f":"SUBTOTAL(109,BiudžetoDuomenys[Skirtumas])","v":{"v":55,"d":"55 EUR"}}]

{"sheet":"Papildomi duomenys","index":3,"n_rows":15,"n_cols":5,"rows_kept":15}
["Naudokite šį darbalapį, kad modifikuotumėte stulpelio Kategorija išplečiamąjį sąrašą lentelėje Biudžeto duomenys darbalapyje Mėnesio išlaidos. Norėdami tai padaryti, modifikuokite arba įveskite naują kategoriją lentelėje Kategorijos peržvalga, prasidedančioje E2 langelyje. „PivotTable“, susieta su darbalapio Mėnesio biudžeto ataskaita diagrama Biudžeto apžvalga, prasideda B2 langelyje.","Biudžeto apžvalga diagramos „PivotTable“",null,null,"Biudžeto duomenų kategorijos peržvalgos sąrašas"]
[null,"Kategorija","Kaina",null,"Biudžeto kategorijos peržvalga"]
[null,"Vaikai",{"v":140,"d":"140 EUR"},null,"Vaikai"]
[null,"Pramogos",{"v":358,"d":"358 EUR"},null,"Pramogos"]
[null,"Maistas",{"v":1320,"d":"1,320 EUR"},null,"Maistas"]
[null,"Dovanos ir labdara",{"v":125,"d":"125 EUR"},null,"Dovanos ir labdara"]
[null,"Būstas",{"v":2702,"d":"2,702 EUR"},null,"Būstas"]
[null,"Draudimas",{"v":900,"d":"900 EUR"},null,"Draudimas"]
[null,"Paskolos",{"v":200,"d":"200 EUR"},null,"Paskolos"]
[null,"Asmens priežiūra",{"v":140,"d":"140 EUR"},null,"Asmens priežiūra"]
[null,"Gyvūnai",{"v":100,"d":"100 EUR"},null,"Gyvūnai"]
[null,"Santaupos arba investicijos",{"v":200,"d":"200 EUR"},null,"Santaupos arba investicijos"]
[null,"Mokesčiai",{"v":300,"d":"300 EUR"},null,"Mokesčiai"]
[null,"Transportas",{"v":1375,"d":"1,375 EUR"},null,"Transportas"]
[null,"Bendroji suma",{"v":7860,"d":"7,860 EUR"}]